Workbook

Sheet Utgiftsrapport
A1: FÖRETAGSNAMN
A2: UTGIFTSRAPPORT
B4: ANSTÄLLD: | C4: Cecilia Rylander | G4: GODKÄND AV:
B5: AVDELNING: | C5: Försäljning
B6: VECKA: | C6: 2013-03-07 | G6: DATUM:
B7: MILERSÄTTNING: | C7: 0.67 kr
C9: =UPPER(TEXT(C10,"dddd")) -> FREDAG | D9: =UPPER(TEXT(D10,"dddd")) -> LÖRDAG | E9: SÖNDAG | F9: MÅNDAG | G9: TISDAG | H9: ONSDAG | I9: TORSDAG
B10: TRANSPORTER | C10: =Vecka-6 -> 2013-03-01 | D10: =Vecka-5 -> 2013-03-02 | E10: =Vecka-4 -> 2013-03-03 | F10: =Vecka-3 -> 2013-03-04 | G10: =Vecka-2 -> 2013-03-05 | H10: =Vecka-1 -> 2013-03-06 | I10: =Vecka -> 2013-03-07 | J10: SUMMA
B11: Körda mil | C11: 145 | J11: =SUM(Resor[[#This Row],[Dag 1]:[Dag 7]]) -> 145
B12: Milersättning | C12: =C11*milersättning -> 97.15 kr | D12: 0.00 kr | E12: 0.00 kr | F12: 0.00 kr | G12: 0.00 kr | H12: 0.00 kr | I12: 0.00 kr | J12: =SUM(Resor[[#This Row],[Dag 1]:[Dag 7]]) -> 97.15 kr
B13: Parkerings- och vägavgifter | F13: 17.00 kr | J13: =SUM(Resor[[#This Row],[Dag 1]:[Dag 7]]) -> 17.00 kr
B14: Fordonshyra | C14: 79.00 kr | F14: 79.00 kr | J14: =SUM(Resor[[#This Row],[Dag 1]:[Dag 7]]) -> 158.00 kr
B15: Taxi/limousinservice | J15: =SUM(Resor[[#This Row],[Dag 1]:[Dag 7]]) -> 0.00 kr
B16: Övrigt (tåg eller buss) | J16: =SUM(Resor[[#This Row],[Dag 1]:[Dag 7]]) -> 0.00 kr
B17: Flygresor | F17: 235.00 kr | J17: =SUM(Resor[[#This Row],[Dag 1]:[Dag 7]]) -> 235.00 kr
B18: SUMMA | C18: =SUBTOTAL(109,C12:C17) -> 176.15 kr | D18: =SUBTOTAL(109,D12:D17) -> 0.00 kr | F18: =SUBTOTAL(109,F12:F17) -> 331.00 kr | G18: =SUBTOTAL(109,G12:G17) -> 0.00 kr | H18: =SUBTOTAL(109,H12:H17) -> 0.00 kr | I18: =SUBTOTAL(109,I12:I17) -> 0.00 kr | J18: =SUM(J12:J17) -> 507.15 kr
B20: HUSRUM och MÅLTIDER
B21: Husrum | C21: 145.00 kr | J21: =SUM(husrum_måltider[[#This Row],[Dag 1]:[Dag 7]]) -> 145.00 kr
B22: Frukost | C22: 11.49 kr | J22: =SUM(husrum_måltider[[#This Row],[Dag 1]:[Dag 7]]) -> 11.49 kr
B23: Lunch | C23: 12.00 kr | J23: =SUM(husrum_måltider[[#This Row],[Dag 1]:[Dag 7]]) -> 12.00 kr
B24: Middag | C24: 17.00 kr | J24: =SUM(husrum_måltider[[#This Row],[Dag 1]:[Dag 7]]) -> 17.00 kr
B25: Tilltugg | C25: =C24*milersättning -> 11.39 kr | J25: =SUM(husrum_måltider[[#This Row],[Dag 1]:[Dag 7]]) -> 11.39 kr
B26: Delsumma måltider | C26: =SUM(C22:C24) -> 40.49 kr | D26: =SUM(D22:D24) -> 0.00 kr | E26: 0.00 kr | F26: 0.00 kr | G26: 0.00 kr | H26: 0.00 kr | I26: 0.00 kr | J26: =SUM(husrum_måltider[[#This Row],[Dag 1]:[Dag 7]]) -> 40.49 kr
B27: SUMMA | C27: =SUBTOTAL(109,C21,C26) -> 185.49 kr | D27: 0.00 kr | E27: 0.00 kr | F27: 0.00 kr | G27: 0.00 kr | H27: 0.00 kr | I27: 0.00 kr | J27: 185.49 kr
B29: DIVERSE
B30: Material | J30: =SUM(Div[[#This Row],[Dag 1]:[Dag 7]]) -> 0.00 kr
B31: Utrustning | J31: =SUM(Div[[#This Row],[Dag 1]:[Dag 7]]) -> 0.00 kr
B32: Telefon, fax, Internet | J32: =SUM(Div[[#This Row],[Dag 1]:[Dag 7]]) -> 0.00 kr
B33: Övrigt* | J33: =SUM(Div[[#This Row],[Dag 1]:[Dag 7]]) -> 0.00 kr
B34: Nöjen* | F34: 199.00 kr | J34: =SUM(Div[[#This Row],[Dag 1]:[Dag 7]]) -> 199.00 kr
B35: SUMMA | C35: =SUBTOTAL(109,Div[Dag 1]) -> 0.00 kr | D35: =SUBTOTAL(109,Div[Dag 2]) -> 0.00 kr | E35: =SUBTOTAL(109,Div[Dag 3]) -> 0.00 kr | F35: =SUBTOTAL(109,Div[Dag 4]) -> 199.00 kr | G35: =SUBTOTAL(109,Div[Dag 5]) -> 0.00 kr | H35: =SUBTOTAL(109,Div[Dag 6]) -> 0.00 kr | I35: =SUBTOTAL(109,Div[Dag 7]) -> 0.00 kr | J35: =SUBTOTAL(109,Div[Summa]) -> 199.00 kr
B37: SLUTSUMMA | D37: =SUM(Div[[#Totals],[Dag 1]],husrum_måltider[[#Totals],[Dag 1]],Resor[[#Totals],[Dag 1]]) -> 361.64 kr | E37: =SUM(Div[[#Totals],[Dag 3]],husrum_måltider[[#Totals],[Dag 3]],Resor[[#Totals],[Dag 3]]) -> 0.00 kr | F37: =SUM(Div[[#Totals],[Dag 4]],husrum_måltider[[#Totals],[Dag 4]],Resor[[#Totals],[Dag 4]]) -> 530.00 kr | G37: =SUM(Div[[#Totals],[Dag 5]],husrum_måltider[[#Totals],[Dag 5]],Resor[[#Totals],[Dag 5]]) -> 0.00 kr | H37: =SUM(Div[[#Totals],[Dag 6]],husrum_måltider[[#Totals],[Dag 6]],Resor[[#Totals],[Dag 6]]) -> 0.00 kr | I37: =SUM(Div[[#Totals],[Dag 7]],husrum_måltider[[#Totals],[Dag 7]],Resor[[#Totals],[Dag 7]]) -> 0.00 kr | J37: =SUM(Div[[#Totals],[Summa]],husrum_måltider[[#Totals],[Summa]],Resor[[#Totals],[Summa]]) -> 891.64 kr
J39: SUMMA UTGIFTER
B40: *Affärsnytta av "Nöjen" och "Övrigt": | J40: =SUM(J18,J27,J35) -> 891.64 kr
J41: FÖRSKOTT
J43: SUMMA ERSÄTTNING
J44: =J40-J42 -> 891.64 kr
J45: Bifoga alla kvitton.
